bitfinex/quotes_SOLUSD_20241226
["timestamp","ask_amount","ask_price","bid_price","bid_amount"]
[1735182263843,26.74744956,196.4,196.33,14.01834956]
[1735182264328,12.7291,196.4,196.34,14.01834956]
[1735182265434,12.7291,196.4,196.33,14.01834956]
[1735182265643,26.74744956,196.4,196.33,14.01834956]
[1735182268041,26.74744956,196.4,196.32,14.01834956]
[1735182268438,14.01834956,196.39,196.32,14.01834956]
[1735182269040,14.01834956,196.38,196.3,14.01834956]
[1735182269237,12.7291,196.4,196.29,14.01834956]
[1735182269238,14.01834956,196.37,196.29,14.01834956]
[1735182269446,14.01834956,196.38,196.31,14.01834956]
[1735182269645,14.01834956,196.39,196.32,14.01834956]
[1735182269945,20.0,196.36,196.32,14.01834956]
[1735182270138,38.1873,196.4,196.34,14.01834956]
[1735182270139,12.7291,196.4,196.34,14.01834956]
[1735182271320,9.83736837,196.43,196.38,14.01834956]
[1735182271524,9.83736837,196.43,196.41,14.01834956]
[1735182271525,1.5925,196.43,196.41,14.01834956]
[1735182271734,12.7246,196.47,196.42,14.01834956]
[1735182272031,9.78748468,196.48,196.43,14.01834956]
[1735182272272,9.78748468,196.48,196.36,0.76359057]
[1735182272273,2.04368468,196.48,196.45,14.01834956]
[1735182272543,28.77719957,196.54,196.47,14.01834956]
[1735182273048,14.01834956,196.53,196.46,14.01834956]
[1735182273232,28.77719957,196.54,196.46,14.01834956]
[1735182273631,26.73834956,196.54,196.47,14.01834956]
[1735182275029,12.72,196.54,196.47,14.01834956]
[1735182276254,26.73834956,196.54,196.46,14.01834956]
[1735182276551,14.01834956,196.52,196.44,14.01834956]
[1735182276754,26.73834956,196.54,196.46,14.01834956]
[1735182276913,14.01834956,196.55,196.48,14.01834956]
[1735182277287,1.5329,196.56,196.53,14.01834956]
[1735182277622,1.5329,196.56,196.52,14.01834956]
[1735182279520,1.5329,196.56,196.51,14.01834956]
[1735182279725,1.5329,196.56,196.5,14.01834956]
[1735182280143,20.0,196.54,196.45,0.76319843]
[1735182280450,20.0,196.54,196.5,14.01834956]
[1735182280627,1.5329,196.56,196.5,14.01834956]
[1735182281016,1.5329,196.56,196.51,14.01834956]
[1735182281222,1.5329,196.56,196.52,14.01834956]
[1735182281433,1.5329,196.56,196.53,14.01834956]
[1735182281738,1.5329,196.56,196.52,14.01834956]
[1735182281935,1.5329,196.56,196.51,14.01834956]
[1735182282136,1.5329,196.56,196.52,14.01834956]
[1735182282335,1.5329,196.56,196.49,14.01834956]
[1735182283363,1.5329,196.56,196.5,14.01834956]
[1735182283564,1.5329,196.56,196.51,14.01834956]
[1735182285169,14.01834956,196.55,196.47,0.76322498]
[1735182285373,14.01834956,196.55,196.47,14.01834956]
[1735182285675,14.01834956,196.48,196.36,31.6307]
[1735182285969,14.01834956,196.48,196.4,14.01834956]
[1735182286353,14.01834956,196.48,196.41,14.01834956]
[1735182287471,14.01834956,196.48,196.4,14.01834956]
[1735182288072,14.01834956,196.48,196.41,14.01834956]
[1735182290054,1.6124,196.47,196.39,14.01834956]
[1735182290387,14.01834956,196.46,196.37,14.01834956]
[1735182292288,14.01834956,196.44,196.37,14.01834956]
[1735182294283,14.01834956,196.45,196.38,14.01834956]
[1735182294586,20.0,196.44,196.38,14.01834956]
[1735182294756,14.01834956,196.46,196.38,14.01834956]
[1735182295284,14.01834956,196.45,196.38,14.01834956]
[1735182295784,14.01834956,196.45,196.37,14.01834956]
[1735182295986,14.337,196.47,196.36,14.01834956]
[1735182295987,14.01834956,196.43,196.36,14.01834956]
[1735182296157,14.01834956,196.44,196.37,14.01834956]
[1735182296475,14.01834956,196.44,196.32,0.76388855]
[1735182296476,14.01834956,196.44,196.36,14.01834956]
[1735182297584,14.01834956,196.43,196.35,14.01834956]
[1735182298987,14.01834956,196.42,196.35,14.01834956]
[1735182300390,12.7265,196.45,196.37,14.01834956]
[1735182300557,1.6124,196.47,196.41,14.01834956]
[1735182300766,1.6124,196.47,196.4,14.01834956]
[1735182300985,6.0354,196.51,196.45,14.01834956]
[1735182301189,6.0354,196.51,196.46,14.01834956]
[1735182301666,6.0354,196.51,196.4,44.78180629]
[1735182301667,1.6514,196.52,196.47,14.01834956]
[1735182301865,1.6514,196.52,196.48,14.01834956]
[1735182302391,7.8747,196.57,196.51,14.01834956]
[1735182302600,7.8747,196.57,196.52,14.01834956]
[1735182302770,7.8747,196.57,196.51,14.01834956]
[1735182303290,1.6514,196.57,196.51,14.01834956]
[1735182304079,20.24164956,196.61,196.54,14.01834956]
[1735182304399,15.66974956,196.63,196.56,14.01834956]
[1735182304575,14.01834956,196.62,196.54,14.01834956]
[1735182304768,14.01834956,196.61,196.54,14.01834956]
[1735182304967,14.01834956,196.62,196.55,14.01834956]
[1735182305169,15.66974956,196.63,196.55,14.01834956]
[1735182305466,14.01834956,196.61,196.54,14.01834956]
[1735182305696,14.01834956,196.62,196.54,14.01834956]
[1735182306396,14.01834956,196.61,196.53,14.01834956]
[1735182306596,14.01834956,196.58,196.51,14.01834956]
[1735182306759,14.01834956,196.58,196.5,14.01834956]
[1735182307184,14.01834956,196.58,196.51,14.01834956]
[1735182307686,14.01834956,196.59,196.52,14.01834956]
[1735182307888,14.01834956,196.6,196.52,14.01834956]
[1735182308193,14.01834956,196.58,196.47,0.76310466]
[1735182308400,14.01834956,196.53,196.46,14.01834956]
[1735182308989,14.01834956,196.52,196.44,14.01834956]
[1735182309196,14.01834956,196.51,196.44,14.01834956]
[1735182309490,14.01834956,196.49,196.42,14.01834956]
[1735182309896,14.01834956,196.5,196.42,14.01834956]
[1735182310492,14.01834956,196.47,196.39,14.01834956]
[1735182310693,14.01834956,196.46,196.39,14.01834956]
[1735182311197,14.01834956,196.45,196.38,14.01834956]
[1735182311487,20.0,196.47,196.35,14.01834956]
[1735182311787,14.01834956,196.42,196.35,14.01834956]
[1735182311998,14.01834956,196.42,196.34,14.01834956]
[1735182312988,14.01834956,196.41,196.33,14.01834956]
[1735182313168,14.01834956,196.4,196.32,14.01834956]
[1735182313492,14.01834956,196.41,196.33,14.01834956]
[1735182314204,22.42557566,196.42,196.35,22.42557566]
[1735182315401,22.42557566,196.38,196.31,22.42557566]
[1735182316078,22.42557566,196.39,196.31,22.42557566]
[1735182316276,22.42557566,196.39,196.32,22.42557566]
[1735182316477,22.42557566,196.38,196.31,22.42557566]
[1735182317808,22.42557566,196.37,196.3,22.42557566]
[1735182318097,22.42557566,196.35,196.28,22.42557566]
[1735182318893,22.42557566,196.35,196.27,22.42557566]
[1735182319290,1.5457,196.41,196.31,22.42557566]
[1735182319291,22.42557566,196.39,196.31,22.42557566]
[1735182319491,22.42557566,196.39,196.32,22.42557566]
[1735182319908,22.42557566,196.4,196.33,22.42557566]
[1735182320390,1.5457,196.41,196.36,22.42557566]
[1735182320587,22.42557566,196.44,196.37,22.42557566]
[1735182321289,22.42557566,196.44,196.36,22.42557566]
[1735182321486,22.42557566,196.43,196.35,22.42557566]
[1735182321792,22.42557566,196.4,196.33,22.42557566]
[1735182322105,22.42557566,196.41,196.33,22.42557566]
[1735182322286,22.42557566,196.42,196.34,22.42557566]
[1735182322483,42.42557566,196.43,196.35,22.42557566]
[1735182322991,22.42557566,196.44,196.37,22.42557566]
[1735182323316,22.42557566,196.42,196.34,22.42557566]
[1735182323519,22.42557566,196.41,196.33,22.42557566]
[1735182324193,22.42557566,196.42,196.34,22.42557566]
[1735182324397,42.42557566,196.43,196.34,22.42557566]
[1735182325291,22.42557566,196.38,196.3,22.42557566]
[1735182325706,22.42557566,196.36,196.28,22.42557566]
[1735182325906,23.99027566,196.36,196.28,22.42557566]
[1735182326482,22.42557566,196.34,196.26,22.42557566]
[1735182327208,35.15887566,196.34,196.26,22.42557566]
[1735182327393,22.42557566,196.32,196.24,22.42557566]
[1735182328712,35.15887566,196.34,196.27,22.42557566]
[1735182328915,22.42557566,196.35,196.28,22.42557566]
[1735182329807,22.42557566,196.3,196.21,0.76412889]
[1735182330006,22.42557566,196.29,196.21,22.42557566]
[1735182330211,42.42557566,196.31,196.23,22.42557566]
[1735182330685,20.0,196.31,196.23,22.42557566]
[1735182330887,22.42557566,196.3,196.22,22.42557566]
[1735182331114,22.42557566,196.28,196.2,22.42557566]
[1735182334015,22.42557566,196.3,196.22,22.42557566]
[1735182334198,20.0,196.3,196.23,14.03025486]
[1735182334396,34.03025486,196.31,196.25,14.03025486]
[1735182335227,20.0,196.31,196.25,14.03025486]
[1735182335400,14.03025486,196.33,196.25,14.03025486]
[1735182340015,14.03025486,196.31,196.23,14.03025486]
[1735182340335,14.03025486,196.29,196.21,14.03025486]
[1735182341521,15.58205486,196.27,196.19,14.03025486]
[1735182343534,28.31965486,196.27,196.19,14.03025486]
[1735182344739,28.31965486,196.27,196.2,14.03025486]
[1735182346438,28.31965486,196.27,196.19,14.03025486]
[1735182347237,14.03025486,196.26,196.19,14.03025486]
[1735182347816,1.5518,196.27,196.21,14.03025486]
[1735182348013,1.5518,196.27,196.23,14.03025486]
[1735182348223,1.5518,196.27,196.22,14.03025486]
[1735182348514,1.5518,196.27,196.21,14.03025486]
[1735182348906,14.03025486,196.26,196.19,14.03025486]
[1735182349143,26.76845486,196.26,196.19,14.03025486]
[1735182350458,14.03025486,196.25,196.13,0.76445847]
[1735182350755,14.03025486,196.24,196.17,14.03025486]
[1735182350926,14.03025486,196.25,196.18,14.03025486]
[1735182351143,14.03025486,196.25,196.13,0.76456361]
[1735182351144,14.03025486,196.23,196.16,14.03025486]
[1735182351338,14.03025486,196.23,196.15,14.03025486]
[1735182352558,14.03025486,196.23,196.16,14.03025486]
[1735182353135,14.03025486,196.23,196.15,14.03025486]
[1735182353354,14.03025486,196.23,196.16,14.03025486]
[1735182354267,14.03025486,196.22,196.15,14.03025486]
[1735182355159,14.03025486,196.22,196.14,14.03025486]
[1735182356266,14.03025486,196.22,196.12,7.25604215]
[1735182356267,14.03025486,196.22,196.15,14.03025486]
[1735182356474,14.03025486,196.23,196.16,14.03025486]
[1735182357967,8.1115,196.27,196.13,23.902374]
[1735182358157,14.03025486,196.3,196.23,14.03025486]
[1735182358363,15.55185486,196.32,196.25,14.03025486]
[1735182358867,1.5216,196.32,196.26,14.03025486]
[1735182359053,1.5216,196.32,196.27,14.03025486]
[1735182359253,14.03025486,196.34,196.23,0.12549]
[1735182359254,14.03025486,196.35,196.28,14.03025486]
[1735182359866,14.03025486,196.35,196.21,36.3087]
[1735182359867,14.03025486,196.33,196.26,14.03025486]
[1735182360071,14.03025486,196.32,196.24,14.03025486]
[1735182360372,14.03025486,196.34,196.26,14.03025486]
[1735182360548,14.03025486,196.34,196.27,14.03025486]
[1735182360953,14.03025486,196.35,196.28,14.03025486]
[1735182361168,14.03025486,196.35,196.27,14.03025486]
[1735182361355,15.55185486,196.36,196.28,14.03025486]
[1735182361756,14.03025486,196.35,196.28,14.03025486]
[1735182362771,14.03025486,196.35,196.21,6.3087]
[1735182362772,14.03025486,196.39,196.31,14.03025486]
[1735182362950,14.03025486,196.39,196.29,0.76401498]
[1735182362951,14.03025486,196.39,196.32,14.03025486]
[1735182363274,1.5216,196.41,196.34,14.03025486]
[1735182363646,14.03025486,196.42,196.35,14.03025486]
[1735182364047,14.03025486,196.43,196.36,14.03025486]
[1735182364679,14.03025486,196.42,196.35,14.03025486]
[1735182364850,14.03025486,196.42,196.32,0.76375531]
[1735182364851,14.03025486,196.36,196.25,7.93909189]
[1735182365175,14.03025486,196.34,196.26,14.03025486]
[1735182365346,14.03025486,196.34,196.27,14.03025486]
[1735182365684,14.03025486,196.33,196.26,14.03025486]
[1735182365980,14.03025486,196.33,196.25,14.03025486]
[1735182366583,14.03025486,196.3,196.23,14.03025486]
[1735182367950,14.03025486,196.33,196.25,14.03025486]
[1735182368149,14.03025486,196.33,196.26,14.03025486]
[1735182369249,15.55185486,196.35,196.26,14.03025486]
[1735182369672,14.03025486,196.33,196.23,0.7641575]
[1735182369955,14.03025486,196.31,196.23,14.03025486]
[1735182370881,14.03025486,196.31,196.24,14.03025486]
[1735182371087,14.03025486,196.32,196.24,14.03025486]
[1735182372476,14.03025486,196.34,196.26,14.03025486]
[1735182374157,14.03025486,196.32,196.24,14.03025486]
[1735182375676,20.0,196.34,196.26,14.03025486]
[1735182375871,15.55185486,196.35,196.28,14.03025486]
[1735182376181,1.5216,196.35,196.28,14.03025486]
[1735182376691,1.5695,196.4,196.32,14.03025486]
[1735182376864,1.5695,196.4,196.34,14.03025486]
[1735182377369,14.03025486,196.44,196.37,14.03025486]
[1735182377779,8.1344,196.45,196.38,14.03025486]
[1735182378087,14.03025486,196.44,196.37,14.03025486]
[1735182378291,8.1344,196.45,196.33,0.88919504]
[1735182378292,14.03025486,196.43,196.35,14.03025486]
[1735182379878,14.03025486,196.43,196.37,14.03025486]
[1735182380074,8.1344,196.45,196.37,14.03025486]
[1735182380261,14.03025486,196.47,196.39,14.03025486]
[1735182380463,20.59515486,196.49,196.41,14.03025486]
[1735182380765,1.5695,196.5,196.43,14.03025486]
[1735182381790,1.5695,196.5,196.44,14.03025486]
[1735182381992,14.03025486,196.51,196.44,14.03025486]
[1735182382286,14.03025486,196.48,196.4,14.03025486]
[1735182382587,14.03025486,196.47,196.39,14.03025486]
[1735182383188,14.03025486,196.48,196.4,14.03025486]
[1735182383400,14.03025486,196.47,196.4,14.03025486]
[1735182384376,14.03025486,196.45,196.37,14.03025486]
[1735182384923,14.03025486,196.42,196.33,0.76370674]
[1735182385062,14.03025486,196.39,196.31,14.03025486]
[1735182385263,14.03025486,196.39,196.32,14.03025486]
[1735182385490,14.03025486,196.39,196.31,14.03025486]
[1735182385698,14.03025486,196.4,196.32,14.03025486]
[1735182386279,22.42724284,196.4,196.33,22.42724284]
[1735182389492,22.42724284,196.38,196.31,22.42724284]
[1735182389994,7.6726,196.44,196.33,22.42724284]
[1735182389995,22.42724284,196.42,196.33,22.42724284]
[1735182390193,1.6616,196.44,196.37,22.42724284]
[1735182390506,8.07230136,196.49,196.41,22.42724284]
[1735182390798,22.42724284,196.53,196.45,22.42724284]
[1735182391096,6.011,196.54,196.48,22.42724284]
[1735182391277,1.6616,196.55,196.49,22.42724284]
[1735182391479,1.6616,196.55,196.48,22.42724284]
[1735182391784,24.08884284,196.55,196.48,22.42724284]
[1735182392295,24.08884284,196.55,196.43,0.88880065]
[1735182392296,1.6616,196.55,196.49,22.42724284]
[1735182392500,22.42724284,196.57,196.5,22.42724284]
[1735182393394,22.42724284,196.57,196.47,0.7632111]
[1735182393706,22.42724284,196.57,196.5,22.42724284]
[1735182395201,28.43824284,196.58,196.51,22.42724284]
[1735182395378,1.6616,196.59,196.52,22.42724284]
[1735182395584,1.6616,196.59,196.53,22.42724284]
[1735182396607,22.42724284,196.61,196.53,22.42724284]
[1735182396992,22.42724284,196.6,196.53,22.42724284]
[1735182397921,22.42724284,196.61,196.53,22.42724284]
[1735182398223,22.42724284,196.61,196.51,0.76303394]
[1735182398224,22.42724284,196.63,196.55,22.42724284]
[1735182398514,1.6632,196.64,196.57,22.42724284]
[1735182398719,1.6632,196.64,196.58,22.42724284]
[1735182399311,1.6632,196.64,196.59,22.42724284]
[1735182399692,24.09044284,196.64,196.57,22.42724284]
[1735182400111,1.6632,196.64,196.57,22.42724284]
[1735182400715,12.7109,196.69,196.6,22.42724284]
[1735182400716,22.42724284,196.67,196.6,22.42724284]
[1735182401213,22.42724284,196.66,196.59,22.42724284]
[1735182401513,22.42724284,196.65,196.58,22.42724284]
[1735182401716,22.42724284,196.66,196.58,22.42724284]
[1735182402193,22.42724284,196.67,196.59,22.42724284]
[1735182402690,22.42724284,196.66,196.59,22.42724284]
[1735182403100,22.42724284,196.61,196.53,22.42724284]
[1735182403411,22.42724284,196.59,196.51,22.42724284]
[1735182403615,22.42724284,196.57,196.48,22.42724284]
[1735182403790,22.42724284,196.57,196.49,22.42724284]
[1735182404419,24.09044284,196.59,196.53,22.42724284]
[1735182405118,22.42724284,196.61,196.53,22.42724284]
[1735182407448,1.6632,196.64,196.53,22.42724284]
[1735182407721,22.42724284,196.62,196.53,22.42724284]
[1735182409720,35.14214284,196.62,196.53,22.42724284]
[1735182409904,22.42724284,196.6,196.51,22.42724284]
[1735182410625,22.42724284,196.62,196.53,22.42724284]
[1735182411294,1.6632,196.64,196.59,22.42724284]
[1735182412927,24.09044284,196.64,196.57,22.42724284]
[1735182413130,1.6632,196.64,196.57,22.42724284]
[1735182413296,1.6632,196.64,196.59,22.42724284]
[1735182414798,1.6632,196.64,196.61,22.42724284]
[1735182414999,22.42724284,196.68,196.61,22.42724284]
[1735182415322,1.6653,196.69,196.65,22.42724284]
[1735182415505,1.6653,196.73,196.65,22.42724284]
[1735182416107,1.6653,196.73,196.66,22.42724284]
[1735182416716,24.09254284,196.73,196.65,22.42724284]
[1735182417834,1.6653,196.73,196.69,22.42724284]
[1735182418332,6.0603,196.76,196.69,22.42724284]
[1735182418532,22.42724284,196.77,196.69,22.42724284]
[1735182419434,22.42724284,196.77,196.7,22.42724284]
[1735182420531,22.42724284,196.76,196.69,22.42724284]
[1735182420822,22.42724284,196.71,196.58,36.2305]
[1735182421135,22.42724284,196.71,196.64,22.42724284]
[1735182421319,22.42724284,196.73,196.66,22.42724284]
[1735182422035,22.42724284,196.75,196.66,22.42724284]
[1735182422236,22.42724284,196.77,196.69,22.42724284]
[1735182422475,22.42724284,196.77,196.7,22.42724284]
[1735182423323,22.42724284,196.77,196.69,22.42724284]
[1735182423632,22.42724284,196.77,196.7,22.42724284]
[1735182424240,22.42724284,196.76,196.68,22.42724284]
[1735182424404,22.42724284,196.76,196.69,22.42724284]
[1735182424609,22.42724284,196.77,196.7,22.42724284]
[1735182424915,24.09254284,196.78,196.71,22.42724284]
[1735182425112,1.6653,196.78,196.74,22.42724284]
[1735182425308,23.93294284,196.84,196.76,22.42724284]
[1735182425725,22.42724284,196.83,196.76,22.42724284]
[1735182426010,22.42724284,196.83,196.75,22.42724284]
[1735182426209,13.95620801,196.83,196.75,13.95620801]
[1735182426545,13.95620801,196.82,196.75,13.95620801]
[1735182426729,13.95620801,196.78,196.67,0.76221206]
[1735182426916,14.2064,196.84,196.67,0.76221206]
[1735182426917,13.95620801,196.77,196.7,13.95620801]
[1735182427232,13.95620801,196.75,196.67,13.95620801]
[1735182427427,13.95620801,196.73,196.66,13.95620801]
[1735182427625,13.95620801,196.68,196.58,0.7626197]
[1735182427830,13.95620801,196.68,196.6,13.95620801]
[1735182428213,22.36611713,196.66,196.59,22.36611713]
[1735182428414,22.36611713,196.67,196.59,22.36611713]
[1735182429238,22.36611713,196.62,196.55,22.36611713]
[1735182429649,22.36611713,196.63,196.56,22.36611713]
[1735182430143,30.07041713,196.68,196.61,22.36611713]
[1735182430346,7.7043,196.68,196.61,22.36611713]
[1735182430515,7.7043,196.68,196.62,22.36611713]
[1735182430711,7.7043,196.68,196.57,30.76299707]
[1735182430712,7.7043,196.68,196.61,22.36611713]
[1735182431316,1.6101,196.68,196.62,22.36611713]
[1735182431738,22.36611713,196.67,196.59,22.36611713]
[1735182432237,22.36611713,196.65,196.57,22.36611713]
[1735182432430,22.36611713,196.63,196.55,22.36611713]
[1735182432829,22.36611713,196.65,196.57,22.36611713]
[1735182433144,22.36611713,196.67,196.59,22.36611713]
[1735182433341,23.97621713,196.68,196.6,22.36611713]
[1735182433724,22.36611713,196.66,196.59,22.36611713]
[1735182434349,43.97621713,196.68,196.59,22.36611713]
[1735182436240,22.36611713,196.66,196.59,22.36611713]
[1735182436446,21.6101,196.68,196.57,22.36611713]
[1735182436447,22.36611713,196.64,196.57,22.36611713]
[1735182436950,22.36611713,196.62,196.55,22.36611713]
[1735182437135,22.36611713,196.64,196.55,22.36611713]
[1735182438322,28.46031713,196.64,196.55,22.36611713]
[1735182438746,22.36611713,196.62,196.55,22.36611713]
[1735182439842,22.36611713,196.62,196.53,22.36611713]
[1735182440039,35.08131713,196.62,196.53,22.36611713]
[1735182440627,23.97621713,196.58,196.51,22.36611713]
[1735182440828,23.97621713,196.58,196.49,22.36611713]
[1735182441029,22.36611713,196.56,196.48,22.36611713]
[1735182441220,23.97621713,196.58,196.5,22.36611713]
[1735182441425,23.97621713,196.58,196.46,30.0]
[1735182441426,1.6101,196.58,196.53,22.36611713]
[1735182442455,1.6101,196.58,196.52,22.36611713]
[1735182442652,22.36611713,196.56,196.48,22.36611713]
[1735182444453,22.36611713,196.56,196.43,0.76319743]
[1735182444454,22.36611713,196.52,196.43,0.76319743]
[1735182444634,22.36611713,196.5,196.43,22.36611713]
[1735182445554,22.36611713,196.5,196.42,22.36611713]
[1735182446133,20.0,196.5,196.46,22.36611713]
[1735182446345,28.54521713,196.53,196.46,22.36611713]
[1735182446545,22.36611713,196.52,196.44,22.36611713]
[1735182447749,22.36611713,196.51,196.44,22.36611713]
[1735182447940,1.6631,196.49,196.43,22.36611713]
[1735182448247,7.8422,196.53,196.47,22.36611713]
[1735182448452,1.6631,196.53,196.47,22.36611713]
[1735182449427,1.6631,196.53,196.44,22.36611713]
[1735182449428,22.36611713,196.52,196.44,22.36611713]
[1735182450050,22.36611713,196.51,196.43,22.36611713]
[1735182450241,22.36611713,196.52,196.44,22.36611713]
[1735182450442,22.36611713,196.5,196.43,22.36611713]
[1735182451146,22.36611713,196.52,196.44,22.36611713]
[1735182452550,22.36611713,196.5,196.43,22.36611713]
[1735182452765,22.36611713,196.5,196.41,22.36611713]
[1735182453958,22.36611713,196.46,196.39,22.36611713]
[1735182454136,22.36611713,196.47,196.39,22.36611713]
[1735182454475,22.36611713,196.45,196.36,22.36611713]
[1735182454630,22.36611713,196.43,196.36,22.36611713]
[1735182454833,22.36611713,196.44,196.36,22.36611713]
[1735182455266,22.36611713,196.45,196.38,22.36611713]
[1735182455473,1.5466,196.46,196.4,22.36611713]
[1735182455771,1.5466,196.46,196.42,22.36611713]
[1735182455931,23.91271713,196.5,196.43,22.36611713]
[1735182456131,1.5466,196.5,196.43,22.36611713]
[1735182456646,23.91271713,196.5,196.43,22.36611713]
[1735182457282,1.5466,196.5,196.44,22.36611713]
[1735182457491,6.012,196.53,196.47,22.36611713]
[1735182457666,6.012,196.53,196.48,22.36611713]
[1735182458256,6.012,196.53,196.47,22.36611713]
[1735182458774,6.012,196.53,196.46,22.36611713]
[1735182458978,6.012,196.53,196.42,0.88880418]
[1735182458979,6.012,196.53,196.47,22.36611713]
[1735182459758,23.88231713,196.55,196.47,22.36611713]
[1735182460492,23.88231713,196.55,196.48,22.36611713]
[1735182460859,1.5162,196.55,196.48,22.36611713]
[1735182461061,1.5162,196.55,196.49,22.36611713]
[1735182461260,1.5162,196.55,196.48,22.36611713]
[1735182461779,22.36611713,196.53,196.46,22.36611713]
[1735182462678,22.36611713,196.54,196.46,22.36611713]
[1735182464861,22.36611713,196.52,196.44,22.36611713]
[1735182465057,22.36611713,196.5,196.42,22.36611713]
[1735182465592,22.36611713,196.52,196.44,22.36611713]
[1735182465762,22.36611713,196.53,196.46,22.36611713]
[1735182465956,1.5162,196.55,196.48,22.36611713]
[1735182466187,1.5162,196.55,196.51,22.36611713]
[1735182466389,1.5162,196.55,196.52,22.36611713]
[1735182466690,23.88231713,196.61,196.54,22.36611713]
[1735182466863,1.5162,196.61,196.54,22.36611713]
[1735182467062,1.5162,196.61,196.56,22.36611713]
[1735182468295,22.36611713,196.59,196.52,22.36611713]
[1735182468468,22.36611713,196.59,196.5,22.36611713]
[1735182469501,22.36611713,196.57,196.5,22.36611713]
[1735182470700,22.36611713,196.59,196.5,22.36611713]
[1735182471871,22.36611713,196.57,196.48,22.36611713]
[1735182472588,22.36611713,196.55,196.48,22.36611713]
[1735182472792,22.36611713,196.53,196.46,22.36611713]
[1735182475404,22.36611713,196.53,196.42,23.12943002]
[1735182475405,22.36611713,196.51,196.42,23.12943002]
[1735182475580,22.36611713,196.48,196.41,22.36611713]
[1735182475986,22.36611713,196.48,196.4,22.36611713]
[1735182476193,22.36611713,196.47,196.4,22.36611713]
[1735182476394,22.36611713,196.45,196.38,22.36611713]
[1735182476609,14.2379,196.52,196.38,22.36611713]
[1735182476610,22.36611713,196.46,196.38,22.36611713]
[1735182476910,22.36611713,196.46,196.39,22.36611713]
[1735182478197,22.36611713,196.47,196.39,22.36611713]
[1735182478397,22.36611713,196.47,196.41,22.36611713]
[1735182478591,22.36611713,196.48,196.4,22.36611713]
[1735182480301,12.7245,196.47,196.4,22.36611713]
[1735182480507,22.36611713,196.44,196.38,22.36611713]
[1735182480883,22.36611713,196.45,196.38,22.36611713]
[1735182481090,22.36611713,196.46,196.38,22.36611713]
[1735182481686,12.7245,196.47,196.38,22.36611713]
[1735182481893,35.09061713,196.47,196.39,22.36611713]
[1735182482300,22.36611713,196.49,196.41,22.36611713]
[1735182482537,1.5162,196.52,196.45,22.36611713]
[1735182483000,23.88231713,196.52,196.45,22.36611713]
[1735182483901,1.5162,196.52,196.45,22.36611713]
[1735182484108,1.5162,196.52,196.48,22.36611713]
[1735182484292,1.5772,196.56,196.51,22.36611713]
[1735182484497,1.5772,196.56,196.53,22.36611713]
[1735182484682,36.65931713,196.61,196.54,22.36611713]
[1735182484885,36.65931713,196.61,196.53,22.36611713]
[1735182485119,22.36611713,196.57,196.5,22.36611713]
[1735182485302,22.36611713,196.58,196.5,22.36611713]
[1735182485618,22.36611713,196.58,196.46,30.0]
[1735182485619,22.36611713,196.59,196.52,22.36611713]
[1735182486314,22.36611713,196.6,196.53,22.36611713]
[1735182486520,36.65931713,196.61,196.53,22.36611713]
[1735182486919,22.36611713,196.6,196.53,22.36611713]
[1735182487121,22.36611713,196.57,196.49,22.36611713]
[1735182487287,22.36611713,196.54,196.47,22.36611713]
[1735182487488,22.36611713,196.55,196.48,22.36611713]
[1735182487697,22.36611713,196.57,196.49,22.36611713]
[1735182487987,22.36611713,196.56,196.49,22.36611713]
[1735182488398,22.36611713,196.56,196.48,22.36611713]
[1735182490045,22.36611713,196.51,196.42,0.76326887]
[1735182490185,24.02171713,196.51,196.42,22.36611713]
[1735182490502,22.36611713,196.49,196.42,22.36611713]
[1735182493392,24.02171713,196.51,196.44,22.36611713]
[1735182493592,1.6556,196.51,196.46,22.36611713]
[1735182494893,6.0027,196.57,196.4,52.36611713]
[1735182494894,30.02441713,196.57,196.49,22.36611713]
[1735182495241,22.36611713,196.59,196.53,22.36611713]
[1735182496914,22.36611713,196.59,196.51,22.36611713]
[1735182498421,22.36611713,196.55,196.47,22.36611713]
[1735182498607,22.36611713,196.55,196.46,0.76311094]
[1735182498926,22.36611713,196.59,196.51,22.36611713]
[1735182502012,22.36611713,196.57,196.49,22.36611713]
[1735182502210,22.36611713,196.57,196.5,0.12549]
[1735182502545,7.6583,196.62,196.55,22.36611713]
[1735182502909,1.6556,196.62,196.55,22.36611713]
[1735182506132,22.36611713,196.61,196.53,23.12910793]
[1735182506633,22.36611713,196.61,196.53,22.36611713]
[1735182506832,22.36611713,196.59,196.51,23.12923963]
[1735182507031,14.3704,196.62,196.57,22.36611713]
[1735182507032,21.6556,196.62,196.57,22.36611713]
[1735182507416,22.36611713,196.66,196.57,22.36611713]
[1735182507735,20.0,196.63,196.57,22.36611713]
[1735182508534,42.36611713,196.64,196.57,22.36611713]
[1735182509943,22.36611713,196.62,196.53,22.36611713]
[1735182510122,22.36611713,196.6,196.51,23.12903985]
[1735182510628,22.36611713,196.6,196.53,22.36611713]
[1735182511141,42.36611713,196.64,196.55,22.36611713]
[1735182515742,20.0,196.64,196.55,22.36611713]
[1735182516047,22.36611713,196.63,196.55,22.36611713]